bitfinex-derivatives/quotes_BTCF0:USTF0_20250318
["timestamp","ask_amount","ask_price","bid_price","bid_amount"]
[1742274215939,0.1203159,83122.0,83121.0,0.290158]
[1742274216837,0.1804622,83129.0,83128.0,0.1203045]
[1742274217048,0.12047465,83130.0,83129.0,0.1203045]
[1742274217352,0.12047465,83130.0,83129.0,0.3903045]
[1742274217648,0.00017125,83130.0,83129.0,0.3903045]
[1742274217847,0.12047435,83130.0,83129.0,0.3903045]
[1742274218146,0.00017125,83130.0,83129.0,0.40430378]
[1742274218342,0.00017125,83130.0,83129.0,0.40430333]
[1742274223543,0.00017125,83130.0,83129.0,0.61906254]
[1742274223741,0.1202889,83140.0,83133.0,0.1202987]
[1742274223940,0.1202889,83140.0,83133.0,1.2736587]
[1742274224149,0.0601403,83146.0,83133.0,1.2736587]
[1742274224150,0.1202873,83141.0,83133.0,1.2736587]
[1742274224650,0.1202864,83142.0,83133.0,1.2736587]
[1742274224842,0.1202882,83141.0,83133.0,1.2736587]
[1742274225043,0.1202888,83140.0,83133.0,1.2736587]
[1742274225649,0.0601429,83142.0,83133.0,1.2736587]
[1742274225948,0.1202872,83141.0,83133.0,1.2736587]
[1742274226853,0.0601262,83165.0,83133.0,1.2936587]
[1742274227044,0.1202771,83148.0,83133.0,1.2936587]
[1742274227546,0.1202788,83147.0,83133.0,1.2936587]
[1742274228254,0.0601387,83148.0,83133.0,1.2936587]
[1742274228545,0.1202816,83145.0,83133.0,1.2936587]
[1742274229445,0.0456,83149.0,83133.0,1.2936587]
[1742274229641,0.1202806,83146.0,83133.0,1.2936587]
[1742274230036,0.0456,83149.0,83133.0,1.2936587]
[1742274230037,0.1202817,83145.0,83133.0,1.2936587]
[1742274231851,0.1057394,83147.0,83133.0,1.2936587]
[1742274232055,0.0456,83147.0,83133.0,1.5536587]
[1742274232657,0.1658791,83147.0,83133.0,1.5536587]
[1742274233152,0.1666804,83146.0,83133.0,1.56760835]
[1742274233355,0.1666804,83146.0,83133.0,1.61660835]
[1742274233557,0.1656815,83145.0,83133.0,1.61660835]
[1742274234256,0.1656815,83145.0,83133.0,1.6026587]
[1742274234555,0.0464,83146.0,83133.0,1.81741791]
[1742274234757,0.0464,83146.0,83133.0,1.86541791]
[1742274234945,0.1666802,83146.0,83133.0,1.86541791]
[1742274235342,0.0484,83145.0,83133.0,1.86541791]
[1742274235755,0.0464,83144.0,83133.0,1.86541791]
[1742274236159,0.0484,83143.0,83133.0,1.86541791]
[1742274236747,0.0464,83144.0,83133.0,1.6506587]
[1742274237348,0.0484,83143.0,83133.0,1.6506587]
[1742274237752,0.0601373,83150.0,83133.0,1.6506587]
[1742274237958,0.0464,83146.0,83133.0,1.6506587]
[1742274238149,0.0492,83145.0,83133.0,1.6506587]
[1742274239260,0.0495,83144.0,83133.0,1.6506587]
[1742274239655,0.060136,83152.0,83149.0,0.1202742]
[1742274239851,0.0987,83150.0,83149.0,0.3602742]
[1742274240154,0.0987,83150.0,83149.0,0.8371542]
[1742274241153,0.0987,83150.0,83149.0,0.85041378]
[1742274241965,0.2189742,83150.0,83149.0,0.73433378]
[1742274242154,0.2189742,83150.0,83149.0,0.85041378]
[1742274243954,0.2189742,83150.0,83149.0,0.48961378]
[1742274245364,0.1202799,83146.0,83145.0,0.1202808]
[1742274245562,0.1202799,83146.0,83145.0,0.2463608]
[1742274246368,0.2126799,83146.0,83145.0,0.2463608]
[1742274246665,0.2126799,83146.0,83145.0,0.2593676]
[1742274246966,0.2126799,83146.0,83145.0,0.2463608]
[1742274247155,0.2126799,83146.0,83145.0,0.12608]
[1742274247356,0.2126799,83146.0,83145.0,0.2463614]
[1742274247665,0.2126799,83146.0,83145.0,0.12608]
[1742274248056,0.2126799,83146.0,83145.0,0.2463614]
[1742274249567,0.2126799,83146.0,83145.0,0.2363614]
[1742274250757,0.2126799,83146.0,83145.0,0.11608]
[1742274251657,0.2126799,83146.0,83145.0,0.11737554]
[1742274253263,0.4626799,83146.0,83145.0,0.00129554]
[1742274253469,0.1202814,83145.0,83144.0,0.11608]
[1742274253667,0.3802814,83145.0,83144.0,0.11608]
[1742274253965,0.1202857,83142.0,83141.0,0.00018046]
[1742274254167,0.1202973,83134.0,83133.0,0.91336]
[1742274254472,0.1202973,83134.0,83133.0,1.02944]
[1742274254965,0.1202987,83133.0,83132.0,0.21475921]
[1742274255357,0.4959987,83133.0,83132.0,0.21475921]
[1742274255561,0.2159987,83133.0,83132.0,0.21475921]
[1742274256263,0.2159987,83133.0,83125.0,0.0483]
[1742274256264,0.1203089,83126.0,83125.0,0.0483]
[1742274257173,0.2178089,83126.0,83125.0,0.0962]
[1742274257662,0.2178089,83126.0,83125.0,0.10938014]
[1742274258667,0.2178089,83126.0,83125.0,0.22969044]
[1742274259271,0.1664074,83127.0,83126.0,0.1203089]
[1742274259467,0.1664074,83127.0,83126.0,0.4982089]
[1742274260159,0.2638074,83127.0,83126.0,0.4982089]
[1742274261470,0.1664074,83127.0,83126.0,0.4982089]
[1742274262173,0.1203074,83127.0,83126.0,0.4982089]
[1742274271968,0.1203074,83127.0,83126.0,0.8590089]
[1742274274371,0.1203074,83127.0,83126.0,0.9750889]
[1742274275771,0.2153074,83127.0,83126.0,0.9750889]
[1742274275976,0.2153074,83127.0,83126.0,0.6142889]
[1742274277467,0.2153074,83127.0,83126.0,0.2182089]
[1742274277784,0.2153074,83127.0,83126.0,0.3342889]
[1742274279673,0.2153074,83127.0,83126.0,0.6950889]
[1742274279874,0.2153074,83127.0,83126.0,0.3342889]
[1742274280078,0.2153074,83127.0,83126.0,0.6950889]
[1742274280279,0.2153074,83127.0,83126.0,0.3342889]
[1742274280480,0.2153074,83127.0,83126.0,0.6950889]
[1742274280682,0.2153074,83127.0,83126.0,0.3342889]
[1742274281878,0.2153074,83127.0,83126.0,0.2182089]
[1742274284381,0.1203089,83126.0,83125.0,0.01318014]
[1742274284582,0.1804633,83126.0,83125.0,0.0457]
[1742274284882,0.2754633,83126.0,83125.0,0.0457]
[1742274285683,0.1203103,83125.0,83124.0,0.00018046]
[1742274286071,0.2153103,83125.0,83124.0,0.00018046]
[1742274293974,0.1203161,83121.0,83120.0,0.0925]
[1742274294377,0.1203262,83114.0,83113.0,0.9132]
[1742274294578,0.0601588,83120.0,83106.0,0.1203376]
[1742274294579,0.1203364,83107.0,83106.0,0.1203376]
[1742274294783,0.1203364,83107.0,83106.0,0.2303376]
[1742274295377,0.1193364,83107.0,83106.0,0.2303376]
[1742274295883,0.1193364,83107.0,83106.0,0.3241376]
[1742274296087,0.1193364,83107.0,83106.0,0.3281376]
[1742274296275,0.1193364,83107.0,83106.0,0.4442176]
[1742274297279,0.1193364,83107.0,83106.0,0.45726888]
[1742274297477,0.1193364,83107.0,83106.0,0.45926888]
[1742274298288,0.1203364,83107.0,83106.0,0.45326888]
[1742274299185,0.1213364,83107.0,83106.0,0.81406888]
[1742274299579,0.1213364,83107.0,83106.0,0.82836373]
[1742274302083,0.1213364,83107.0,83106.0,0.82840299]
[1742274304083,0.001,83107.0,83106.0,0.82840299]
[1742274304488,0.1213364,83107.0,83106.0,0.82840299]
[1742274305685,0.001,83107.0,83106.0,0.82840299]
[1742274306895,0.1213364,83107.0,83106.0,0.82840299]
[1742274308290,0.001,83107.0,83106.0,0.82840299]
[1742274308491,0.1213364,83107.0,83106.0,0.82840299]
[1742274310389,0.1213364,83107.0,83106.0,0.71232299]
[1742274310595,0.1213364,83107.0,83106.0,0.82840299]
[1742274311600,0.1213364,83107.0,83106.0,0.828542]
[1742274312094,0.1213364,83107.0,83106.0,0.85171403]
[1742274312296,0.1213364,83107.0,83106.0,0.7082044]
[1742274312594,0.2647364,83107.0,83106.0,0.8285422]
[1742274312897,0.2647364,83107.0,83106.0,0.7124622]
[1742274313098,0.2647364,83107.0,83106.0,0.8285422]
[1742274313491,0.2647364,83107.0,83106.0,0.82854627]
[1742274313889,0.2647364,83107.0,83106.0,0.70820847]
[1742274314092,0.2647364,83107.0,83106.0,0.34740847]
[1742274314289,0.2647364,83107.0,83106.0,0.46774627]
[1742274315404,0.2647364,83107.0,83106.0,0.4677769]
[1742274317296,0.2647364,83107.0,83106.0,0.46777782]
[1742274319298,0.2647364,83107.0,83106.0,0.46775364]
[1742274320301,0.2647364,83107.0,83106.0,0.10828456]
[1742274320502,0.1203465,83100.0,83094.0,1.32022041]
[1742274320705,0.1203465,83100.0,83099.0,0.01]
[1742274321004,0.27958596,83107.0,83094.0,1.19986561]
[1742274321005,0.120348,83099.0,83095.0,0.11608]
[1742274321193,0.216448,83099.0,83096.0,0.01271645]
[1742274323599,0.216448,83099.0,83097.0,0.0946]
[1742274323808,0.216448,83099.0,83098.0,0.00018046]
[1742274324005,0.216448,83099.0,83098.0,0.04898046]
[1742274326813,0.216448,83099.0,83098.0,0.00018046]
[1742274327713,0.216448,83099.0,83098.0,0.04588046]
[1742274335821,0.260748,83099.0,83098.0,0.04588046]
[1742274346132,0.120348,83099.0,83098.0,0.16622986]
[1742274346335,0.120348,83099.0,83098.0,0.44622986]
[1742274346535,0.120348,83099.0,83098.0,0.48952986]
[1742274347734,0.1203429,83103.0,83102.0,0.1203422]
[1742274347931,0.1203397,83105.0,83104.0,0.1203393]
[1742274348237,0.1203384,83106.0,83105.0,0.1203378]
[1742274348437,0.1203384,83106.0,83105.0,0.4467378]
[1742274349737,0.1213384,83106.0,83105.0,0.4467378]
[1742274353141,0.001,83106.0,83105.0,0.4467378]
[1742274354040,0.001,83106.0,83105.0,0.48492432]
[1742274355736,0.001,83106.0,83105.0,0.49492432]
[1742274356439,0.001,83106.0,83105.0,0.50492432]
[1742274356637,0.1203226,83117.0,83114.0,0.1203262]
[1742274356946,0.1203226,83117.0,83114.0,0.90185332]
[1742274357338,0.1203226,83117.0,83114.0,0.99075332]
[1742274357539,0.1203224,83117.0,83114.0,0.99075332]
[1742274357735,0.1203237,83116.0,83114.0,0.99075332]
[1742274358240,0.1203237,83116.0,83114.0,0.99061338]
[1742274358446,0.1203223,83117.0,83114.0,0.99061338]
[1742274360342,0.0601597,83119.0,83114.0,0.99061338]
[1742274360548,0.1202988,83135.0,83134.0,0.1202959]
[1742274360743,0.21575326,83136.0,83135.0,0.1202959]
[1742274361144,0.21575326,83136.0,83135.0,0.4810959]
[1742274361937,0.33604916,83136.0,83135.0,0.4810959]
[1742274362443,0.1202959,83136.0,83135.0,0.49364451]
[1742274362651,0.21575326,83138.0,83137.0,0.120293]
[1742274362835,0.33604476,83138.0,83137.0,0.360293]
[1742274363036,0.21575326,83138.0,83137.0,0.360293]
[1742274364253,0.21575326,83138.0,83137.0,0.620293]
[1742274364439,0.21575326,83138.0,83137.0,0.61383407]
[1742274364635,0.21575326,83138.0,83137.0,0.38383407]
[1742274364837,0.21575326,83138.0,83137.0,0.64383407]
[1742274365038,0.21575326,83138.0,83137.0,0.66380335]
[1742274365648,0.00018046,83144.0,83143.0,0.1202843]
[1742274365843,0.00018046,83144.0,83143.0,0.8370843]
[1742274366045,0.0462,83158.0,83152.0,0.1202713]
[1742274366046,0.0463,83153.0,83152.0,0.1202713]
[1742274366347,0.0463,83153.0,83152.0,0.8270713]
[1742274367140,0.1665698,83153.0,83152.0,0.8270713]
[1742274367339,0.2405252,83161.0,83160.0,0.1202522]
[1742274367549,0.2405252,83161.0,83160.0,0.116]
[1742274369050,0.2859252,83161.0,83160.0,0.116]
[1742274369350,0.2859252,83161.0,83160.0,0.2362597]
[1742274371047,0.2859252,83161.0,83160.0,0.2804597]
[1742274371246,0.2859252,83161.0,83160.0,0.29337999]
[1742274372137,0.2859252,83161.0,83160.0,0.17312029]
[1742274375947,0.0601347,83154.0,83147.0,0.3608]
[1742274376158,0.1202713,83152.0,83151.0,0.0422]
[1742274376654,0.1202756,83149.0,83148.0,0.16116]
[1742274376849,0.1202756,83149.0,83148.0,0.36596]
[1742274377045,0.1202756,83149.0,83148.0,0.45336]
[1742274377261,0.1202756,83149.0,83148.0,0.573637]
[1742274377558,0.1202756,83149.0,83148.0,0.45336]
[1742274377757,0.1202756,83149.0,83148.0,0.573637]
[1742274378755,0.1202756,83149.0,83148.0,0.25]
[1742274378954,0.120277,83148.0,83147.0,0.001]
[1742274379264,0.206477,83148.0,83147.0,0.001]
[1742274379450,0.1202799,83146.0,83145.0,1.02944]
[1742274380460,0.1202799,83146.0,83145.0,0.91348]
[1742274380657,0.1202814,83145.0,83144.0,0.00018046]
[1742274380852,0.1646814,83145.0,83144.0,0.00018046]
[1742274383154,0.1646814,83145.0,83144.0,6e-08]
[1742274383358,0.5306414,83145.0,83144.0,6e-08]
[1742274384355,0.2806414,83145.0,83144.0,6e-08]
[1742274389066,0.2806814,83145.0,83144.0,6e-08]
[1742274389669,0.1646814,83145.0,83144.0,6e-08]
[1742274392363,0.5254814,83145.0,83144.0,6e-08]
[1742274397473,0.5700814,83145.0,83144.0,6e-08]
[1742274401364,0.6149814,83145.0,83144.0,6e-08]
[1742274405367,0.0601464,83138.0,83132.0,0.01256758]
[1742274405567,0.0601479,83135.0,83127.0,0.0453]
[1742274405768,0.1203002,83132.0,83127.0,0.0453]
[1742274406368,0.1203002,83132.0,83131.0,0.37356572]
[1742274408978,0.1203045,83129.0,83128.0,0.0458]
[1742274409168,0.4811045,83129.0,83128.0,0.0458]
[1742274409369,0.4811045,83129.0,83128.0,0.0098075]
[1742274409582,0.1203118,83124.0,83120.0,0.33075921]
[1742274410277,0.1203118,83124.0,83123.0,0.01243956]
[1742274410575,0.2115118,83124.0,83123.0,0.01243956]
[1742274413080,0.2115118,83124.0,83123.0,0.05463956]
[1742274417586,0.2115118,83124.0,83123.0,6e-08]
[1742274417885,0.4615118,83124.0,83123.0,6e-08]
[1742274418276,0.2115118,83124.0,83123.0,6e-08]
[1742274418579,0.2115118,83124.0,83123.0,0.04360006]
[1742274418781,0.2115118,83124.0,83123.0,6e-08]
[1742274432282,0.4815118,83124.0,83123.0,6e-08]
[1742274432591,0.2115118,83124.0,83123.0,6e-08]
[1742274433888,0.4715118,83124.0,83123.0,6e-08]
[1742274434085,0.2115118,83124.0,83123.0,6e-08]
[1742274438884,0.4715118,83124.0,83123.0,6e-08]
[1742274441897,0.2115118,83124.0,83123.0,6e-08]
[1742274444989,0.5723118,83124.0,83123.0,6e-08]
[1742274445197,0.2115118,83124.0,83123.0,6e-08]
[1742274445502,0.5723118,83124.0,83123.0,6e-08]
[1742274449099,0.5723118,83124.0,83108.0,0.1203343]
[1742274449100,0.1203378,83106.0,83091.0,0.1203591]
[1742274449395,0.1203422,83103.0,83102.0,0.28634561]
[1742274449803,0.1203422,83103.0,83102.0,0.17929291]
[1742274449999,0.4003422,83103.0,83102.0,0.14827551]
[1742274450199,0.4003422,83103.0,83102.0,0.07125991]
[1742274450402,0.4828422,83103.0,83102.0,0.03605571]
[1742274450588,0.4828422,83103.0,83102.0,0.00103191]
[1742274451191,0.2028422,83103.0,83102.0,0.00103191]
[1742274451591,0.2018422,83103.0,83102.0,0.00103191]
[1742274453400,0.120348,83099.0,83098.0,0.0413]
[1742274453594,0.481148,83099.0,83098.0,0.0413]
[1742274454304,0.565948,83099.0,83098.0,0.0413]
[1742274454804,0.566948,83099.0,83098.0,0.0413]
[1742274456195,0.1203494,83098.0,83097.0,0.0448]
[1742274456596,0.2087494,83098.0,83097.0,0.0448]
[1742274457906,0.2097494,83098.0,83097.0,0.0448]
[1742274458105,0.2097494,83098.0,83097.0,0.0458]
[1742274463909,0.2087494,83098.0,83097.0,0.0458]
[1742274464105,0.2107494,83098.0,83097.0,0.0458]
[1742274464307,0.2107494,83098.0,83097.0,0.0448]
[1742274470616,0.5715494,83098.0,83097.0,0.0448]
[1742274483126,0.68939707,83098.0,83097.0,0.0448]
[1742274487821,0.68939707,83098.0,83095.0,0.0411]
[1742274487822,0.68939707,83098.0,83094.0,0.00018046]
[1742274488123,0.1203538,83095.0,83094.0,0.00018046]
[1742274488324,0.1203538,83095.0,83094.0,0.08648046]
[1742274488624,0.2084538,83095.0,83094.0,0.08648046]
[1742274490521,0.42462302,83095.0,83094.0,0.08648046]
[1742274491126,0.42662302,83095.0,83094.0,0.08648046]
[1742274491638,0.1203784,83078.0,83055.0,0.64358899]
[1742274491830,0.1203784,83078.0,83077.0,1.7910598]
[1742274493238,0.1203784,83078.0,83077.0,1.80853988]
[1742274493429,0.1203784,83078.0,83077.0,1.81153988]
[1742274493728,0.1658784,83078.0,83077.0,1.81153988]
[1742274494928,0.1658784,83078.0,83077.0,1.89783988]
[1742274495430,0.1658784,83078.0,83077.0,1.90703486]
[1742274495924,0.1658784,83078.0,83077.0,1.90203486]
[1742274496132,0.1658784,83078.0,83077.0,1.90303486]
[1742274496133,0.1203784,83078.0,83077.0,1.90303486]
[1742274496628,0.1203784,83078.0,83077.0,1.90003486]
[1742274496833,0.1213784,83078.0,83077.0,1.90003486]
[1742274504235,0.1213784,83078.0,83077.0,1.53923486]
[1742274504539,0.1213784,83078.0,83077.0,1.90003486]
[1742274506241,0.1630784,83078.0,83077.0,1.90003486]
[1742274507241,0.2044784,83078.0,83077.0,1.90003486]
[1742274510742,0.2044784,83078.0,83077.0,1.91414064]
[1742274510931,0.2044784,83078.0,83077.0,1.00026064]
[1742274511837,0.2044784,83078.0,83077.0,0.98615486]
[1742274512039,0.2044784,83078.0,83077.0,1.00024229]
[1742274513842,0.2044784,83078.0,83077.0,1.00026188]
[1742274517543,0.2044784,83078.0,83077.0,1.00024364]
[1742274518047,0.2044784,83078.0,83077.0,0.79794364]
[1742274518347,0.2488784,83078.0,83077.0,0.91394364]
[1742274518940,0.2488784,83078.0,83077.0,0.95654364]
[1742274520547,0.2488784,83078.0,83077.0,1.00214364]
[1742274520737,0.2488784,83078.0,83077.0,0.91394364]
[1742274521340,0.2488784,83078.0,83077.0,1.00394364]
[1742274523348,0.2488784,83078.0,83077.0,1.00396208]
[1742274524940,0.2488784,83078.0,83077.0,1.00396167]
[1742274527156,0.2488784,83078.0,83077.0,1.00395863]
[1742274529165,0.2488784,83078.0,83077.0,1.00396056]
[1742274530858,0.2488784,83078.0,83077.0,0.64316056]
[1742274532853,0.2488784,83078.0,83077.0,0.62905486]
[1742274533064,0.2488784,83078.0,83077.0,0.64315995]
[1742274534767,0.2488784,83078.0,83077.0,0.64315994]
[1742274536960,0.2044784,83078.0,83077.0,0.64315994]
[1742274537157,0.1203683,83085.0,83084.0,0.0601848]
[1742274537462,0.1203683,83085.0,83084.0,0.45024988]
[1742274537864,0.1203683,83085.0,83084.0,0.53824988]
[1742274538269,0.1223683,83085.0,83084.0,0.53824988]
[1742274540066,0.1223683,83085.0,83084.0,0.47806508]
[1742274540262,0.1223683,83085.0,83084.0,0.43476508]
[1742274540466,0.2108683,83085.0,83084.0,0.13006508]
[1742274542280,0.2108683,83085.0,83084.0,0.11596]
[1742274542869,0.2108683,83085.0,83084.0,0.12996044]
[1742274543468,0.2108683,83085.0,83084.0,0.21756044]
[1742274543967,0.2108683,83085.0,83084.0,0.33793014]
[1742274546276,0.2108683,83085.0,83084.0,0.21756044]
[1742274549380,0.2108683,83085.0,83084.0,0.20356]
[1742274549870,0.2108683,83085.0,83084.0,0.21766531]
[1742274550376,0.2108683,83085.0,83084.0,0.10170531]
[1742274550677,0.2108683,83085.0,83084.0,0.21766536]
[1742274551779,0.2108683,83085.0,83084.0,0.21781678]
[1742274553680,0.2108683,83085.0,83084.0,0.21775581]
[1742274556878,0.1203784,83078.0,83077.0,0.02167506]
[1742274557080,0.1203784,83078.0,83077.0,0.2641596]
[1742274557277,0.2094784,83078.0,83077.0,0.3801196]
[1742274557676,0.2094784,83078.0,83077.0,0.39272023]
[1742274557969,0.2094784,83078.0,83077.0,0.40189696]
[1742274558372,0.2540784,83078.0,83077.0,0.40189696]
[1742274558780,0.2540784,83078.0,83077.0,0.44499696]
[1742274559096,0.2540784,83078.0,83077.0,0.44599696]
[1742274559583,0.2540784,83078.0,83077.0,0.43682023]
[1742274559779,0.2550784,83078.0,83077.0,0.43682023]
[1742274560882,0.2550784,83078.0,83077.0,0.39372023]
[1742274561689,0.2550784,83078.0,83077.0,0.43642023]
[1742274562383,0.2550784,83078.0,83077.0,0.44537904]
[1742274563188,0.2550784,83078.0,83077.0,0.44536507]
[1742274564883,0.2550784,83078.0,83077.0,0.48796507]
[1742274565088,0.2550784,83078.0,83077.0,0.48796289]
[1742274565790,0.2550784,83078.0,83077.0,0.60834269]
[1742274567086,0.2550784,83078.0,83077.0,0.48796187]
[1742274567891,0.2550784,83078.0,83077.0,0.60834167]
[1742274568783,0.2113784,83078.0,83077.0,0.60834167]
[1742274572187,0.2113784,83078.0,83077.0,0.60834358]
[1742274574491,0.2113784,83078.0,83077.0,0.59419924]
[1742274575878,0.2113784,83078.0,83077.0,0.6079961]
[1742274579582,0.2113784,83078.0,83077.0,0.62246031]
[1742274581086,0.2113784,83078.0,83077.0,0.50650031]
[1742274581292,0.2113784,83078.0,83077.0,0.62242031]
[1742274584596,0.2113784,83078.0,83077.0,0.62217754]
[1742274585497,0.2113784,83078.0,83077.0,0.50179774]
[1742274586494,0.2113784,83078.0,83077.0,0.501793]
[1742274586898,0.2113784,83078.0,83077.0,0.24283419]
[1742274590691,0.2113784,83078.0,83077.0,0.22903733]
[1742274591702,0.2113784,83078.0,83077.0,0.0152167]
[1742274591903,0.2113784,83078.0,83077.0,0.01496261]
[1742274592195,0.2113784,83078.0,83077.0,0.11402618]
[1742274593395,0.2113784,83078.0,83077.0,0.10006357]
[1742274595393,0.2113784,83078.0,83077.0,0.11403798]
[1742274596003,0.2113784,83078.0,83077.0,0.10006357]
[1742274596195,0.2113784,83078.0,83077.0,0.05586357]
[1742274598407,0.2113784,83078.0,83077.0,0.10126357]
[1742274599198,0.2113784,83078.0,83077.0,0.0891]
[1742274600111,0.2113784,83078.0,83077.0,0.10130804]
[1742274600494,0.2113784,83078.0,83077.0,0.0891]
[1742274602405,0.2113784,83078.0,83077.0,0.001]
[1742274607116,0.2113784,83078.0,83077.0,0.0879]
[1742274608327,0.2113784,83078.0,83077.0,0.044]
[1742274611125,0.2113784,83078.0,83077.0,0.001]
[1742274611323,0.4813784,83078.0,83077.0,0.001]
[1742274611525,0.2113784,83078.0,83077.0,0.001]
[1742274611715,0.4513784,83078.0,83077.0,0.001]
[1742274614219,0.12039,83070.0,83069.0,6e-08]
[1742274614530,0.72119,83070.0,83069.0,6e-08]
[1742274614726,0.48119,83070.0,83069.0,6e-08]
[1742274614924,0.58276149,83070.0,83069.0,6e-08]
[1742274615325,0.57049,83070.0,83069.0,6e-08]
[1742274615821,0.81149,83070.0,83069.0,6e-08]
[1742274616434,0.82371103,83070.0,83069.0,6e-08]
[1742274616827,0.82671103,83070.0,83069.0,6e-08]
[1742274618026,0.58671103,83070.0,83069.0,6e-08]
[1742274618226,0.82671103,83070.0,83069.0,6e-08]
[1742274618737,0.84671103,83070.0,83069.0,6e-08]
[1742274619526,0.82671103,83070.0,83069.0,6e-08]
[1742274620432,0.58671103,83070.0,83069.0,6e-08]
[1742274620633,0.83671103,83070.0,83069.0,6e-08]
[1742274621828,0.58671103,83070.0,83069.0,6e-08]
[1742274622037,0.86671103,83070.0,83069.0,6e-08]
[1742274624228,0.58671103,83070.0,83069.0,6e-08]
[1742274632947,0.82671103,83070.0,83069.0,6e-08]
[1742274637554,0.1204016,83062.0,83061.0,0.04967046]
[1742274637855,0.7412016,83062.0,83061.0,0.04967046]
[1742274638045,0.8762016,83062.0,83061.0,0.04967046]
[1742274639056,0.6162016,83062.0,83061.0,0.04967046]
[1742274639356,0.8462016,83062.0,83061.0,0.04967046]
[1742274639553,0.8502016,83062.0,83061.0,0.04967046]
[1742274639754,0.8522016,83062.0,83061.0,0.04967046]
[1742274640356,0.6222016,83062.0,83061.0,0.04967046]
[1742274641249,0.8622016,83062.0,83061.0,0.04967046]
[1742274641558,0.8922016,83062.0,83061.0,0.04967046]
[1742274641948,0.8922016,83062.0,83061.0,0.0448]
[1742274642144,0.6222016,83062.0,83061.0,0.0448]
[1742274644059,0.5781016,83062.0,83061.0,0.0448]
[1742274646366,0.0602048,83057.0,83053.0,0.00018058]
[1742274646662,0.4812132,83054.0,83053.0,0.00018058]
[1742274647050,0.5723132,83054.0,83053.0,0.00018058]
[1742274648255,0.58449445,83054.0,83053.0,0.00018058]
[1742274648460,0.5723132,83054.0,83053.0,0.00018058]
[1742274649668,0.58630175,83054.0,83053.0,0.00018058]
[1742274650256,0.82630175,83054.0,83047.0,0.0427]
[1742274650457,0.1204219,83048.0,83047.0,0.0427]
[1742274650859,0.2109219,83048.0,83047.0,0.0427]
[1742274651265,0.1204277,83044.0,83043.0,0.0429]
[1742274651567,0.1204277,83044.0,83043.0,0.05661843]
[1742274652263,0.2144277,83044.0,83043.0,0.05661843]
[1742274653165,0.2134277,83044.0,83043.0,0.05661843]
[1742274653365,0.2134277,83044.0,83043.0,0.05761843]
[1742274653766,0.2134277,83044.0,83043.0,0.05861843]
[1742274655259,0.2144277,83044.0,83043.0,0.05761843]
[1742274657670,0.2144277,83044.0,83043.0,0.0439]
[1742274658671,0.2144277,83044.0,83043.0,0.05763768]
[1742274662169,0.2144277,83044.0,83043.0,0.09933768]
[1742274664477,0.2144277,83044.0,83043.0,0.13583768]
[1742274667773,0.2144277,83044.0,83043.0,0.09293768]
[1742274669475,0.2144277,83044.0,83043.0,0.10728188]
[1742274674689,0.2144277,83044.0,83043.0,0.07078188]
[1742274677181,0.2144277,83044.0,83043.0,0.10728188]
[1742274677373,0.2144277,83044.0,83043.0,0.22771098]
[1742274677779,0.2144277,83044.0,83043.0,0.47771098]
[1742274679280,0.2144277,83044.0,83043.0,0.47765699]
[1742274681082,0.2144277,83044.0,83043.0,0.46336678]
[1742274681382,0.2144277,83044.0,83043.0,0.47759206]
[1742274683486,0.21580257,83059.0,83056.0,0.0602044]
[1742274683691,0.0385,83058.0,83057.0,0.36450943]
[1742274683887,0.0385,83058.0,83057.0,0.54560063]
[1742274683888,0.1204074,83058.0,83057.0,0.54560063]
[1742274684393,0.1204074,83058.0,83057.0,0.54547298]
[1742274684794,0.1607074,83058.0,83057.0,0.54547298]
[1742274684996,0.1637074,83058.0,83057.0,0.54547254]
[1742274686194,0.1687074,83058.0,83057.0,0.54547254]
[1742274689293,0.1687074,83058.0,83057.0,0.54546628]
[1742274690399,0.1687074,83058.0,83057.0,0.54549176]
[1742274690589,0.1687074,83058.0,83057.0,0.90629176]
[1742274690990,0.1687074,83058.0,83057.0,0.89208208]
[1742274692093,0.1687074,83058.0,83057.0,0.9062873]
[1742274693190,0.2095074,83058.0,83057.0,0.9062873]
[1742274693497,0.2095074,83058.0,83057.0,0.8647873]
[1742274695496,0.2095074,83058.0,83057.0,0.85104962]
[1742274697999,0.2095074,83058.0,83057.0,0.86471847]
[1742274698405,0.2015074,83058.0,83057.0,0.86471847]
[1742274698596,0.2065074,83058.0,83057.0,0.86471847]
[1742274699391,0.2065074,83058.0,83057.0,0.85104962]
[1742274699596,0.2065074,83058.0,83057.0,0.88204962]
[1742274699798,0.2065074,83058.0,83057.0,0.85104962]
[1742274700904,0.2065074,83058.0,83057.0,0.86471982]
[1742274701809,0.2065074,83058.0,83057.0,0.85104962]
[1742274702007,0.2065074,83058.0,83057.0,0.8368444]
[1742274702998,0.2045074,83058.0,83057.0,0.8368444]
[1742274703197,0.2065074,83058.0,83057.0,0.8368444]
[1742274703905,0.2075074,83058.0,83057.0,0.8368444]
[1742274704999,0.2075074,83058.0,83057.0,0.7210044]
[1742274705306,0.2075074,83058.0,83057.0,0.85048218]
[1742274707216,0.2075074,83058.0,83057.0,0.86457128]
[1742274707593,0.2075074,83058.0,83057.0,0.8508935]
[1742274709320,0.2075074,83058.0,83057.0,0.86457836]
[1742274710108,0.2075074,83058.0,83057.0,0.8508935]
[1742274713701,0.2075074,83058.0,83057.0,0.8368044]
[1742274713908,0.2075074,83058.0,83057.0,0.85090972]
[1742274714820,0.2075074,83058.0,83057.0,0.86462181]
[1742274716313,0.0601957,83069.0,83068.0,0.1805857]
[1742274716616,0.1805871,83069.0,83068.0,0.5563857]
[1742274717603,0.1865871,83069.0,83068.0,0.5563857]
[1742274718312,0.0711957,83069.0,83068.0,0.5563857]
[1742274719417,0.1119957,83069.0,83068.0,0.5563857]
[1742274719622,0.1507957,83069.0,83068.0,0.5563857]
[1742274721514,0.1894957,83069.0,83068.0,0.56883097]
[1742274724610,0.1894957,83069.0,83068.0,0.38824527]
[1742274724919,0.1894957,83069.0,83065.0,0.038]
[1742274724920,0.1203958,83066.0,83065.0,0.1583958]
[1742274725121,0.1203958,83066.0,83065.0,0.2361958]
[1742274725322,0.1991958,83066.0,83065.0,0.24851245]
[1742274726117,0.2011958,83066.0,83065.0,0.24851245]
[1742274726823,0.2051958,83066.0,83065.0,0.24851245]
[1742274729726,0.2051958,83066.0,83065.0,0.26224838]
[1742274731619,0.2051958,83066.0,83065.0,0.27637273]
[1742274731830,0.2051958,83066.0,83065.0,0.31697273]
[1742274734313,0.2051958,83066.0,83065.0,0.3032368]
[1742274737423,0.2051958,83066.0,83065.0,0.2626368]
[1742274737732,0.03167147,83066.0,83065.0,0.9399368]
[1742274737917,0.03167147,83066.0,83065.0,0.9499368]
[1742274738229,0.15206727,83066.0,83065.0,0.5891368]
[1742274738531,0.15206727,83066.0,83065.0,0.94987163]
[1742274738920,0.02767147,83066.0,83065.0,0.94987163]
[1742274739127,0.03067147,83066.0,83065.0,0.94987163]